[Event "*** Titled Tuesday Blitz"]
[Site "Chess.com"]
[Date "2020.11.24"]
[Round "10"]
[White "Smirnov_Pavel"]
[Black "Oleksandr_Bortnyk"]
[Result "1-0"]
[WhiteElo "2844"]
[BlackElo "2884"]
[TimeControl "180+1"]
[EndTime "12:14:30 PST"]
[Termination "Smirnov_Pavel won on time"]

1. d4 {[%clk 0:03:00.9]} 1... Nf6 {[%clk 0:02:55.8]} 2. c4 {[%clk 0:03:01]} 2...
b6 {[%clk 0:02:55.9]} 3. Nc3 {[%clk 0:02:58.2]} 3... Bb7 {[%clk 0:02:56.8]} 4.
Qc2 {[%clk 0:02:58.1]} 4... e6 {[%clk 0:02:50.1]} 5. e4 {[%clk 0:02:55.2]} 5...
Bb4 {[%clk 0:02:50.6]} 6. Bd3 {[%clk 0:02:54]} 6... c5 {[%clk 0:02:51.1]} 7. a3
{[%clk 0:02:46.3]} 7... Ba5 {[%clk 0:01:56.3]} 8. d5 {[%clk 0:02:44.6]} 8...
exd5 {[%clk 0:01:54.6]} 9. exd5 {[%clk 0:02:45.5]} 9... O-O {[%clk 0:01:52.8]}
10. Ne2 {[%clk 0:02:41.9]} 10... b5 {[%clk 0:01:52.5]} 11. O-O {[%clk
0:02:35.4]} 11... bxc4 {[%clk 0:01:52.9]} 12. Bxc4 {[%clk 0:02:35]} 12... h6
{[%clk 0:01:46.8]} 13. Bf4 {[%clk 0:02:32.2]} 13... d6 {[%clk 0:01:45.5]} 14.
Rad1 {[%clk 0:02:25.6]} 14... Re8 {[%clk 0:01:43.9]} 15. Ng3 {[%clk 0:02:24.2]}
15... Nbd7 {[%clk 0:01:42.2]} 16. Nf5 {[%clk 0:02:15]} 16... Ne5 {[%clk
0:01:41.8]} 17. Bb5 {[%clk 0:02:14.5]} 17... Rf8 {[%clk 0:01:30.5]} 18. Rfe1
{[%clk 0:02:00.4]} 18... Bxc3 {[%clk 0:01:29.2]} 19. Qxc3 {[%clk 0:01:59.6]}
19... Nxd5 {[%clk 0:01:26.9]} 20. Rxd5 {[%clk 0:01:29]} 20... Bxd5 {[%clk
0:01:24.4]} 21. Bxe5 {[%clk 0:01:22.7]} 21... Qg5 {[%clk 0:00:54.5]} 22. Ne3
{[%clk 0:01:22.3]} 22... dxe5 {[%clk 0:00:50.1]} 23. Nxd5 {[%clk 0:01:21.3]}
23... e4 {[%clk 0:00:41.5]} 24. Qxc5 {[%clk 0:01:16.5]} 24... Kh8 {[%clk
0:00:35.3]} 25. Qd4 {[%clk 0:01:16]} 25... Rfd8 {[%clk 0:00:31.1]} 26. Bc4
{[%clk 0:01:15.8]} 26... Rd6 {[%clk 0:00:29.1]} 27. g3 {[%clk 0:00:56.6]} 27...
Rad8 {[%clk 0:00:23.7]} 28. Qxe4 {[%clk 0:00:51.6]} 28... Qd2 {[%clk 0:00:09.1]}
29. Qe3 {[%clk 0:00:38.6]} 29... Rxd5 {[%clk 0:00:06.8]} 30. Bxd5 {[%clk
0:00:38.3]} 30... Rxd5 {[%clk 0:00:03.3]} 31. Qxd2 {[%clk 0:00:33.8]} 31... Rxd2
{[%clk 0:00:04.2]} 32. Re7 {[%clk 0:00:34]} 32... Rxb2 {[%clk 0:00:02.9]} 33.
Rxf7 {[%clk 0:00:29.4]} 33... a5 {[%clk 0:00:03.3]} 34. Rf5 {[%clk 0:00:28.2]}
34... a4 {[%clk 0:00:02.5]} 35. Rf4 {[%clk 0:00:28.3]} 35... Rb1+ {[%clk
0:00:02.3]} 36. Kg2 {[%clk 0:00:28]} 36... Ra1 {[%clk 0:00:03.2]} 37. Rxa4
{[%clk 0:00:28.2]} 37... Ra2 {[%clk 0:00:04.1]} 38. Ra8+ {[%clk 0:00:27.8]}
38... Kh7 {[%clk 0:00:05]} 39. a4 {[%clk 0:00:27.9]} 39... Kg6 {[%clk
0:00:05.1]} 40. a5 {[%clk 0:00:28.3]} 40... h5 {[%clk 0:00:05.7]} 41. a6 {[%clk
0:00:28.8]} 41... Ra3 {[%clk 0:00:06.3]} 42. h3 {[%clk 0:00:28.4]} 42... Kh7
{[%clk 0:00:05.5]} 43. f4 {[%clk 0:00:27.8]} 43... Kg6 {[%clk 0:00:05.5]} 44. a7
{[%clk 0:00:25.7]} 44... Ra2+ {[%clk 0:00:01.7]} 45. Kf3 {[%clk 0:00:25.5]}
45... Ra3+ {[%clk 0:00:02.4]} 46. Ke4 {[%clk 0:00:25.8]} 46... Ra4+ {[%clk
0:00:03]} 47. Kd5 {[%clk 0:00:25]} 47... Ra1 {[%clk 0:00:03]} 48. g4 {[%clk
0:00:24.7]} 48... hxg4 {[%clk 0:00:03.3]} 49. hxg4 {[%clk 0:00:25]} 49... Ra2
{[%clk 0:00:03.2]} 50. f5+ {[%clk 0:00:24.7]} 50... Kf7 {[%clk 0:00:01.4]} 51.
g5 {[%clk 0:00:24]} 51... Ra5+ {[%clk 0:00:01.8]} 52. Kc6 {[%clk 0:00:23]} 52...
Ra1 {[%clk 0:00:01.5]} 53. g6+ {[%clk 0:00:20.6]} 53... Ke7 {[%clk 0:00:01.2]}
54. Rg8 {[%clk 0:00:19.5]} 1-0

[Event "*** Titled Tuesday Blitz"]
[Site "Chess.com"]
[Date "2020.11.24"]
[Round "10"]
[White "MPGM"]
[Black "mbachez"]
[Result "1-0"]
[WhiteElo "2633"]
[BlackElo "2448"]
[TimeControl "180+1"]
[EndTime "12:14:33 PST"]
[Termination "MPGM won by resignation"]

1. d4 {[%clk 0:03:00.9]} 1... Nf6 {[%clk 0:02:59.4]} 2. c4 {[%clk 0:03:00.7]}
2... c5 {[%clk 0:02:58.1]} 3. e3 {[%clk 0:03:00.5]} 3... g6 {[%clk 0:02:57.1]}
4. Nf3 {[%clk 0:03:00.4]} 4... Bg7 {[%clk 0:02:57.4]} 5. Nc3 {[%clk 0:03:01.1]}
5... O-O {[%clk 0:02:57.9]} 6. Be2 {[%clk 0:03:01.7]} 6... cxd4 {[%clk
0:02:58.3]} 7. exd4 {[%clk 0:03:01.7]} 7... d5 {[%clk 0:02:58.4]} 8. O-O {[%clk
0:03:01.7]} 8... Nc6 {[%clk 0:02:57.5]} 9. h3 {[%clk 0:03:01.1]} 9... b6 {[%clk
0:02:55.2]} 10. Re1 {[%clk 0:02:47.8]} 10... Bb7 {[%clk 0:02:52.8]} 11. cxd5
{[%clk 0:02:47.4]} 11... Nb4 {[%clk 0:02:52.6]} 12. h4 {[%clk 0:02:46.3]} 12...
Nbxd5 {[%clk 0:02:50.3]} 13. Ne5 {[%clk 0:02:38.2]} 13... Rc8 {[%clk 0:02:45.6]}
14. Bd2 {[%clk 0:02:35.6]} 14... e6 {[%clk 0:02:28]} 15. h5 {[%clk 0:02:33.3]}
15... Nxc3 {[%clk 0:02:20.7]} 16. bxc3 {[%clk 0:02:32.5]} 16... Nd5 {[%clk
0:01:34.4]} 17. Bf3 {[%clk 0:02:26.1]} 17... Qe7 {[%clk 0:01:32.9]} 18. Bxd5
{[%clk 0:02:23.8]} 18... Bxd5 {[%clk 0:01:31.4]} 19. h6 {[%clk 0:02:23.9]} 19...
Bh8 {[%clk 0:01:28.8]} 20. Qg4 {[%clk 0:02:20.2]} 20... Ba8 {[%clk 0:01:20.9]}
21. Re3 {[%clk 0:02:02.2]} 21... Qb7 {[%clk 0:01:03.6]} 22. Rg3 {[%clk
0:01:56.1]} 22... Rfd8 {[%clk 0:01:03.3]} 23. Bg5 {[%clk 0:01:33.2]} 23... Rf8
{[%clk 0:00:58.6]} 24. Re1 {[%clk 0:01:23.7]} 24... Rce8 {[%clk 0:00:52.5]} 25.
Bd2 {[%clk 0:01:09.1]} 25... Rc8 {[%clk 0:00:35]} 26. Qh4 {[%clk 0:01:04.9]}
26... f6 {[%clk 0:00:27.5]} 27. Ng4 {[%clk 0:00:47.8]} 27... Qf7 {[%clk
0:00:26.9]} 28. Rge3 {[%clk 0:00:35.5]} 28... Bd5 {[%clk 0:00:26.5]} 29. a3
{[%clk 0:00:27.9]} 29... Rfe8 {[%clk 0:00:23.9]} 30. Rg3 {[%clk 0:00:26.9]}
30... Rc6 {[%clk 0:00:15.6]} 31. Bf4 {[%clk 0:00:25.6]} 31... Rec8 {[%clk
0:00:14.3]} 32. Ree3 {[%clk 0:00:22.8]} 32... Qe7 {[%clk 0:00:13.2]} 33. Be5
{[%clk 0:00:18.6]} 33... Rf8 {[%clk 0:00:11.6]} 34. Rgf3 {[%clk 0:00:18.2]}
34... Bxf3 {[%clk 0:00:11.2]} 35. Rxf3 {[%clk 0:00:19.1]} 35... g5 {[%clk
0:00:11.4]} 36. Qh5 {[%clk 0:00:13.6]} 36... fxe5 {[%clk 0:00:08.9]} 37. Rg3
{[%clk 0:00:14]} 37... Rf5 {[%clk 0:00:07.4]} 38. Ne3 {[%clk 0:00:12.8]} 38...
exd4 {[%clk 0:00:06.8]} 39. Nxf5 {[%clk 0:00:13]} 39... exf5 {[%clk 0:00:06.6]}
40. Rxg5+ {[%clk 0:00:13.3]} 40... Kf8 {[%clk 0:00:07]} 41. Rxf5+ {[%clk
0:00:13.3]} 41... Rf6 {[%clk 0:00:07.4]} 42. Re5 {[%clk 0:00:10.3]} 42... Re6
{[%clk 0:00:04.8]} 43. Qf5+ {[%clk 0:00:10.7]} 43... Rf6 {[%clk 0:00:05]} 44.
Qc8+ {[%clk 0:00:10.8]} 44... Kf7 {[%clk 0:00:05.4]} 45. Rxe7+ {[%clk
0:00:11.2]} 45... Kxe7 {[%clk 0:00:05.9]} 46. Qxh8 {[%clk 0:00:11.8]} 46... d3
{[%clk 0:00:04.9]} 47. Qg7+ {[%clk 0:00:11]} 47... Rf7 {[%clk 0:00:05.1]} 48.
Qe5+ {[%clk 0:00:10.9]} 1-0

[Event "*** Titled Tuesday Blitz"]
[Site "Chess.com"]
[Date "2020.11.24"]
[Round "10"]
[White "ChainsOfFantasia"]
[Black "QuintilianoR"]
[Result "0-1"]
[WhiteElo "2477"]
[BlackElo "2654"]
[TimeControl "180+1"]
[EndTime "12:14:33 PST"]
[Termination "QuintilianoR won on time"]

1. d4 {[%clk 0:03:00.6]} 1... Nf6 {[%clk 0:02:58.2]} 2. Nf3 {[%clk 0:03:00.4]}
2... e6 {[%clk 0:02:58.2]} 3. c4 {[%clk 0:03:00.2]} 3... d5 {[%clk 0:02:58.1]}
4. g3 {[%clk 0:03:00]} 4... Be7 {[%clk 0:02:57.2]} 5. Bg2 {[%clk 0:03:00.1]}
5... O-O {[%clk 0:02:57.6]} 6. Nc3 {[%clk 0:03:00]} 6... dxc4 {[%clk 0:02:48.2]}
7. Ne5 {[%clk 0:02:57.8]} 7... c5 {[%clk 0:02:47.4]} 8. dxc5 {[%clk 0:02:57.1]}
8... Qxd1+ {[%clk 0:02:47.8]} 9. Nxd1 {[%clk 0:02:58]} 9... Bxc5 {[%clk
0:02:47.6]} 10. Be3 {[%clk 0:02:55.9]} 10... Bxe3 {[%clk 0:02:42.7]} 11. Nxe3
{[%clk 0:02:55.6]} 11... Nc6 {[%clk 0:02:29.3]} 12. Nxc6 {[%clk 0:02:41.6]}
12... bxc6 {[%clk 0:02:28.4]} 13. Nxc4 {[%clk 0:02:42.2]} 13... Rb8 {[%clk
0:02:25.6]} 14. Rc1 {[%clk 0:02:34.8]} 14... c5 {[%clk 0:02:22.2]} 15. O-O
{[%clk 0:02:32.2]} 15... Ba6 {[%clk 0:02:19.5]} 16. b3 {[%clk 0:02:30.3]} 16...
Nd5 {[%clk 0:02:18.8]} 17. Rfd1 {[%clk 0:02:29.3]} 17... Nb4 {[%clk 0:02:11.6]}
18. Rd2 {[%clk 0:02:12.1]} 18... Rfd8 {[%clk 0:02:09.8]} 19. a3 {[%clk
0:01:46.8]} 19... Nd5 {[%clk 0:01:36]} 20. Na5 {[%clk 0:01:39.3]} 20... Rb5
{[%clk 0:01:28]} 21. Nc6 {[%clk 0:01:34.2]} 21... Re8 {[%clk 0:01:27.6]} 22.
Bxd5 {[%clk 0:01:23.2]} 22... exd5 {[%clk 0:01:27]} 23. Rxd5 {[%clk 0:01:22.4]}
23... Rxb3 {[%clk 0:01:26.5]} 24. Rcxc5 {[%clk 0:01:17.9]} 24... Rxa3 {[%clk
0:01:23.3]} 25. Ra5 {[%clk 0:01:03.3]} 25... Rxa5 {[%clk 0:01:19.6]} 26. Rxa5
{[%clk 0:01:04.2]} 26... Bxe2 {[%clk 0:01:17.7]} 27. f4 {[%clk 0:00:20.8]} 27...
a6 {[%clk 0:01:16.2]} 28. Kf2 {[%clk 0:00:20.5]} 28... Bb5 {[%clk 0:01:14.3]}
29. Nb4 {[%clk 0:00:19]} 29... Re6 {[%clk 0:01:06.7]} 30. f5 {[%clk 0:00:14.6]}
30... Rf6 {[%clk 0:01:06.6]} 31. g4 {[%clk 0:00:13.5]} 31... g6 {[%clk
0:01:05.6]} 32. Kg3 {[%clk 0:00:13.6]} 32... gxf5 {[%clk 0:01:05.6]} 33. Nd5
{[%clk 0:00:11.6]} 33... Rd6 {[%clk 0:00:52.4]} 34. Ne7+ {[%clk 0:00:10.6]}
34... Kf8 {[%clk 0:00:53.1]} 35. Nxf5 {[%clk 0:00:06.3]} 35... Rd3+ {[%clk
0:00:53.3]} 36. Kf4 {[%clk 0:00:05.6]} 36... Rd2 {[%clk 0:00:51.5]} 37. h4
{[%clk 0:00:05]} 37... Rc2 {[%clk 0:00:49.9]} 38. Ra3 {[%clk 0:00:04.4]} 38...
f6 {[%clk 0:00:50]} 39. g5 {[%clk 0:00:03.2]} 39... Rc4+ {[%clk 0:00:49.6]} 40.
Kg3 {[%clk 0:00:03.1]} 40... fxg5 {[%clk 0:00:45.7]} 41. hxg5 {[%clk 0:00:04]}
41... Rc5 {[%clk 0:00:45.6]} 42. Kf4 {[%clk 0:00:03.6]} 42... Rc4+ {[%clk
0:00:45.2]} 43. Ke5 {[%clk 0:00:03.7]} 43... Bd7 {[%clk 0:00:45]} 44. Nd6 {[%clk
0:00:03.3]} 44... Ra4 {[%clk 0:00:43.2]} 45. Rb3 {[%clk 0:00:02.3]} 45... Ra5+
{[%clk 0:00:42.8]} 46. Kf6 {[%clk 0:00:02.6]} 46... Bb5 {[%clk 0:00:34.9]} 47.
Rc3 {[%clk 0:00:02.2]} 47... Bd7 {[%clk 0:00:34.2]} 48. Rc7 {[%clk 0:00:01.8]}
48... Bh3 {[%clk 0:00:19.8]} 49. Ra7 {[%clk 0:00:01.3]} 49... Rc5 {[%clk
0:00:18.2]} 50. Ra8+ {[%clk 0:00:01.3]} 50... Bc8 {[%clk 0:00:16.3]} 51. Nxc8
{[%clk 0:00:01.4]} 51... Ke8 {[%clk 0:00:16.7]} 0-1

[Event "*** Titled Tuesday Blitz"]
[Site "Chess.com"]
[Date "2020.11.24"]
[Round "10"]
[White "YoungMegaMind"]
[Black "Das_Virus_2020"]
[Result "1-0"]
[WhiteElo "2307"]
[BlackElo "2465"]
[TimeControl "180+1"]
[EndTime "12:14:33 PST"]
[Termination "YoungMegaMind won on time"]

1. d4 {[%clk 0:03:00.9]} 1... Nf6 {[%clk 0:02:56.8]} 2. c4 {[%clk 0:03:01.1]}
2... c5 {[%clk 0:02:56.4]} 3. d5 {[%clk 0:03:01.1]} 3... b5 {[%clk 0:02:56.4]}
4. cxb5 {[%clk 0:03:01]} 4... a6 {[%clk 0:02:56.6]} 5. bxa6 {[%clk 0:03:01.3]}
5... g6 {[%clk 0:02:54.7]} 6. Nc3 {[%clk 0:03:01.2]} 6... Bxa6 {[%clk
0:02:54.3]} 7. Nf3 {[%clk 0:02:59.9]} 7... d6 {[%clk 0:02:52.9]} 8. e4 {[%clk
0:03:00.2]} 8... Bxf1 {[%clk 0:02:53.7]} 9. Kxf1 {[%clk 0:03:00.9]} 9... Nbd7
{[%clk 0:02:50.9]} 10. g3 {[%clk 0:03:00.9]} 10... Bg7 {[%clk 0:02:51.3]} 11.
Kg2 {[%clk 0:03:01.2]} 11... O-O {[%clk 0:02:51.3]} 12. Qc2 {[%clk 0:02:58.4]}
12... Qb6 {[%clk 0:02:49]} 13. a4 {[%clk 0:02:55.8]} 13... Rfb8 {[%clk
0:02:42.2]} 14. Ra3 {[%clk 0:02:55.5]} 14... Ne8 {[%clk 0:02:31.2]} 15. Nd2
{[%clk 0:02:54.7]} 15... Nc7 {[%clk 0:02:25.9]} 16. Nc4 {[%clk 0:02:40.2]} 16...
Qa6 {[%clk 0:01:54.5]} 17. b3 {[%clk 0:02:25.9]} 17... Ne5 {[%clk 0:01:42.1]}
18. Nxe5 {[%clk 0:02:23.2]} 18... Bxe5 {[%clk 0:01:41.3]} 19. Bd2 {[%clk
0:02:18.7]} 19... Nb5 {[%clk 0:00:58.3]} 20. Nxb5 {[%clk 0:02:15.2]} 20... Rxb5
{[%clk 0:00:57.2]} 21. a5 {[%clk 0:01:47.4]} 21... Rab8 {[%clk 0:00:49.3]} 22.
Rb1 {[%clk 0:01:42.5]} 22... R5b7 {[%clk 0:00:44.1]} 23. Ra4 {[%clk 0:01:37.1]}
23... Qb5 {[%clk 0:00:41.3]} 24. b4 {[%clk 0:01:18.9]} 24... c4 {[%clk
0:00:39.2]} 25. a6 {[%clk 0:01:16.5]} 25... Ra7 {[%clk 0:00:37.9]} 26. Ra5
{[%clk 0:01:15.7]} 26... Qd7 {[%clk 0:00:32.1]} 27. Qxc4 {[%clk 0:01:08.2]}
27... Rc8 {[%clk 0:00:32]} 28. Qd3 {[%clk 0:01:06.8]} 28... Qc7 {[%clk
0:00:25.9]} 29. b5 {[%clk 0:01:05.4]} 29... Qb6 {[%clk 0:00:17.7]} 30. Ra3
{[%clk 0:00:58.2]} 30... Bd4 {[%clk 0:00:17.3]} 31. Be3 {[%clk 0:00:56.2]} 31...
Bc5 {[%clk 0:00:16.3]} 32. Bxc5 {[%clk 0:00:55.5]} 32... Rxc5 {[%clk 0:00:17.2]}
33. Rab3 {[%clk 0:00:55.6]} 33... f6 {[%clk 0:00:16.7]} 34. h4 {[%clk
0:00:54.8]} 34... Kg7 {[%clk 0:00:15.5]} 35. Qf3 {[%clk 0:00:53.9]} 35... h5
{[%clk 0:00:14.2]} 36. Qe3 {[%clk 0:00:52.8]} 36... Ra8 {[%clk 0:00:12.9]} 37.
Qd4 {[%clk 0:00:50.4]} 37... Ra7 {[%clk 0:00:12.6]} 38. Rb4 {[%clk 0:00:49.9]}
38... Ra8 {[%clk 0:00:12.5]} 39. R1b2 {[%clk 0:00:49.8]} 39... Ra7 {[%clk
0:00:12.6]} 40. Kh3 {[%clk 0:00:48]} 40... Ra8 {[%clk 0:00:12.3]} 41. f4 {[%clk
0:00:48.3]} 41... Ra7 {[%clk 0:00:10.6]} 42. e5 {[%clk 0:00:48.4]} 42... dxe5
{[%clk 0:00:08.8]} 43. fxe5 {[%clk 0:00:48.6]} 43... Kh7 {[%clk 0:00:08.2]} 44.
exf6 {[%clk 0:00:48.3]} 44... exf6 {[%clk 0:00:09.1]} 45. d6 {[%clk 0:00:46.9]}
45... Rd7 {[%clk 0:00:06.9]} 46. Rd2 {[%clk 0:00:42.5]} 46... g5 {[%clk
0:00:04.1]} 47. Qxf6 {[%clk 0:00:30.8]} 47... Rxb5 {[%clk 0:00:02.2]} 48. Rxb5
{[%clk 0:00:14.6]} 48... Qxb5 {[%clk 0:00:02.3]} 49. Qxg5 {[%clk 0:00:11.6]}
49... Qxa6 {[%clk 0:00:01]} 50. Qxh5+ {[%clk 0:00:11.5]} 1-0

[Event "*** Titled Tuesday Blitz"]
[Site "Chess.com"]
[Date "2020.11.24"]
[Round "10"]
[White "Vladislav_Chizhikov"]
[Black "MattyDPerrine"]
[Result "1/2-1/2"]
[WhiteElo "2521"]
[BlackElo "2396"]
[TimeControl "180+1"]
[EndTime "12:14:34 PST"]
[Termination "Game drawn by agreement"]

1. e4 {[%clk 0:02:38]} 1... c5 {[%clk 0:02:59.7]} 2. Nf3 {[%clk 0:02:33.8]} 2...
e6 {[%clk 0:03:00.1]} 3. b3 {[%clk 0:02:32.8]} 3... a6 {[%clk 0:02:59.4]} 4. Bb2
{[%clk 0:02:32.4]} 4... Nc6 {[%clk 0:02:59.9]} 5. c4 {[%clk 0:02:31.3]} 5... Nf6
{[%clk 0:02:58.6]} 6. Nc3 {[%clk 0:02:30.8]} 6... e5 {[%clk 0:02:50.6]} 7. Bd3
{[%clk 0:02:28.7]} 7... g6 {[%clk 0:02:48.1]} 8. Rc1 {[%clk 0:02:28.4]} 8... Bg7
{[%clk 0:02:47.3]} 9. Nd5 {[%clk 0:02:27.7]} 9... d6 {[%clk 0:02:47]} 10. h4
{[%clk 0:02:26.3]} 10... Bg4 {[%clk 0:02:38.4]} 11. a3 {[%clk 0:02:23.4]} 11...
O-O {[%clk 0:01:57.6]} 12. Kf1 {[%clk 0:02:19.1]} 12... Nxd5 {[%clk 0:01:46.9]}
13. cxd5 {[%clk 0:02:16.5]} 13... Ne7 {[%clk 0:01:41.5]} 14. b4 {[%clk 0:02:16]}
14... cxb4 {[%clk 0:01:36.6]} 15. axb4 {[%clk 0:02:15.5]} 15... f5 {[%clk
0:01:37]} 16. Qb3 {[%clk 0:02:12.5]} 16... Qb6 {[%clk 0:01:26.7]} 17. Kg1 {[%clk
0:02:00.3]} 17... fxe4 {[%clk 0:01:13.6]} 18. Bxe4 {[%clk 0:01:59.9]} 18... Rf4
{[%clk 0:01:14.2]} 19. d3 {[%clk 0:01:58.3]} 19... Raf8 {[%clk 0:01:11.4]} 20.
Rc2 {[%clk 0:01:57.2]} 20... Bxf3 {[%clk 0:01:06.8]} 21. gxf3 {[%clk 0:01:54.4]}
21... Rxf3 {[%clk 0:01:07.2]} 22. Bxf3 {[%clk 0:01:53.2]} 22... Rxf3 {[%clk
0:01:08.1]} 23. Qc4 {[%clk 0:01:44.9]} 23... h5 {[%clk 0:00:52]} 24. Bc1 {[%clk
0:01:41]} 24... Nf5 {[%clk 0:00:48.7]} 25. Bg5 {[%clk 0:01:34.4]} 25... Rg3+
{[%clk 0:00:37.3]} 26. Kh2 {[%clk 0:01:28.2]} 26... Rg4 {[%clk 0:00:37.5]} 27.
Qc8+ {[%clk 0:01:26.8]} 27... Kh7 {[%clk 0:00:37.5]} 28. Rb1 {[%clk 0:01:19.2]}
28... Nd4 {[%clk 0:00:21.6]} 29. Rc7 {[%clk 0:01:15.6]} 29... Nf3+ {[%clk
0:00:18.8]} 30. Kh1 {[%clk 0:01:14.7]} 30... Nxg5 {[%clk 0:00:04.9]} 31. Rxg7+
{[%clk 0:00:59.4]} 31... Kxg7 {[%clk 0:00:05.8]} 32. hxg5 {[%clk 0:00:58.9]}
32... Qxf2 {[%clk 0:00:04.8]} 33. Qxb7+ {[%clk 0:00:57.3]} 33... Kg8 {[%clk
0:00:04.3]} 34. Qc8+ {[%clk 0:00:46.4]} 34... Kg7 {[%clk 0:00:03.5]} 35. Qc7+
{[%clk 0:00:20]} 35... Kg8 {[%clk 0:00:03.9]} 36. Qc8+ {[%clk 0:00:18]} 36...
Kg7 {[%clk 0:00:04.4]} 37. Qc7+ {[%clk 0:00:18]} 37... Qf7 {[%clk 0:00:05.2]}
38. Rc1 {[%clk 0:00:17.2]} 38... Rh4+ {[%clk 0:00:04.3]} 39. Kg2 {[%clk
0:00:15.2]} 39... Rg4+ {[%clk 0:00:05.2]} 40. Kh3 {[%clk 0:00:14.2]} 40... Rxg5
{[%clk 0:00:05.7]} 41. Qxf7+ {[%clk 0:00:11]} 41... Kxf7 {[%clk 0:00:06.6]} 42.
Rc7+ {[%clk 0:00:11]} 42... Ke8 {[%clk 0:00:05.2]} 43. Rc6 {[%clk 0:00:11.2]}
43... Rg4 {[%clk 0:00:03.7]} 44. Rxd6 {[%clk 0:00:10.5]} 44... Rxb4 {[%clk
0:00:03.4]} 45. Rxg6 {[%clk 0:00:10.2]} 45... Rd4 {[%clk 0:00:03.4]} 46. Rxa6
{[%clk 0:00:09.6]} 46... Rxd3+ {[%clk 0:00:03.8]} 47. Kh4 {[%clk 0:00:09.4]}
47... Rxd5 {[%clk 0:00:04.7]} 48. Kxh5 {[%clk 0:00:09.6]} 48... Ke7 {[%clk
0:00:05.6]} 49. Kg4 {[%clk 0:00:09.1]} 49... Rd6 {[%clk 0:00:06.1]} 50. Rxd6
{[%clk 0:00:07.1]} 50... Kxd6 {[%clk 0:00:07]} 51. Kf3 {[%clk 0:00:07.4]} 51...
Kc5 {[%clk 0:00:04.9]} 1/2-1/2

[Event "*** Titled Tuesday Blitz"]
[Site "Chess.com"]
[Date "2020.11.24"]
[Round "10"]
[White "CzechmVIII"]
[Black "TC2304"]
[Result "1/2-1/2"]
[WhiteElo "2146"]
[BlackElo "2313"]
[TimeControl "180+1"]
[EndTime "12:14:34 PST"]
[Termination "Game drawn by stalemate"]

1. e4 {[%clk 0:03:00.9]} 1... c5 {[%clk 0:02:59.5]} 2. Nf3 {[%clk 0:03:00.8]}
2... d6 {[%clk 0:02:59.4]} 3. d4 {[%clk 0:02:59.6]} 3... cxd4 {[%clk 0:03:00.3]}
4. Nxd4 {[%clk 0:03:00]} 4... Nf6 {[%clk 0:03:01]} 5. Nc3 {[%clk 0:03:00.5]}
5... a6 {[%clk 0:03:01.8]} 6. Bg5 {[%clk 0:03:00.8]} 6... e6 {[%clk 0:03:02.1]}
7. f4 {[%clk 0:03:00.5]} 7... Nbd7 {[%clk 0:03:02.7]} 8. Qf3 {[%clk 0:02:59.5]}
8... Qc7 {[%clk 0:03:03.2]} 9. O-O-O {[%clk 0:02:56.7]} 9... b5 {[%clk
0:03:03.8]} 10. e5 {[%clk 0:02:41.7]} 10... Bb7 {[%clk 0:03:01.5]} 11. Qh3
{[%clk 0:02:41.7]} 11... dxe5 {[%clk 0:03:02.1]} 12. Nxe6 {[%clk 0:02:36.5]}
12... fxe6 {[%clk 0:03:03]} 13. Qxe6+ {[%clk 0:02:36.5]} 13... Be7 {[%clk
0:03:02.4]} 14. Bxb5 {[%clk 0:01:58.5]} 14... axb5 {[%clk 0:02:52.1]} 15. Nxb5
{[%clk 0:01:58]} 15... Qc6 {[%clk 0:02:52.2]} 16. Nd6+ {[%clk 0:01:49]} 16...
Kd8 {[%clk 0:02:51.8]} 17. Nf7+ {[%clk 0:01:18.4]} 17... Kc7 {[%clk 0:02:03.8]}
18. Qxc6+ {[%clk 0:00:54.2]} 18... Bxc6 {[%clk 0:01:56.1]} 19. Nxh8 {[%clk
0:00:53.9]} 19... Rxh8 {[%clk 0:01:53]} 20. fxe5 {[%clk 0:00:50.5]} 20... Nxe5
{[%clk 0:01:45.8]} 21. Rhe1 {[%clk 0:00:50.4]} 21... Bd6 {[%clk 0:01:38.3]} 22.
Bf4 {[%clk 0:00:40.3]} 22... Re8 {[%clk 0:01:22.9]} 23. Kb1 {[%clk 0:00:15.8]}
23... Nd5 {[%clk 0:01:00.8]} 24. Bg3 {[%clk 0:00:12.4]} 24... Re7 {[%clk
0:00:44.6]} 25. Re2 {[%clk 0:00:12.3]} 25... Nf6 {[%clk 0:00:33.1]} 26. Rde1
{[%clk 0:00:10.8]} 26... Nfd7 {[%clk 0:00:28]} 27. c4 {[%clk 0:00:10.1]} 27...
Kb6 {[%clk 0:00:19.8]} 28. b4 {[%clk 0:00:09]} 28... Bxb4 {[%clk 0:00:19.9]} 29.
Rxe5 {[%clk 0:00:08.1]} 29... Nxe5 {[%clk 0:00:19.6]} 30. Rxe5 {[%clk
0:00:08.2]} 30... Rf7 {[%clk 0:00:10.6]} 31. Kc2 {[%clk 0:00:05.1]} 31... Bd6
{[%clk 0:00:08.4]} 32. Rg5 {[%clk 0:00:04.2]} 32... Bxg3 {[%clk 0:00:07.8]} 33.
Rxg3 {[%clk 0:00:04.4]} 33... Rf2+ {[%clk 0:00:08.3]} 34. Kb3 {[%clk 0:00:04.4]}
34... Rxg2 {[%clk 0:00:09.2]} 35. Rxg2 {[%clk 0:00:04.5]} 35... Bxg2 {[%clk
0:00:09.2]} 36. h4 {[%clk 0:00:04.7]} 36... Kc5 {[%clk 0:00:09.1]} 37. Kc3
{[%clk 0:00:03.8]} 37... Bf1 {[%clk 0:00:10]} 38. a4 {[%clk 0:00:03.1]} 38...
Bxc4 {[%clk 0:00:10.1]} 39. Kd2 {[%clk 0:00:01.7]} 39... Kd5 {[%clk 0:00:10.2]}
40. Ke3 {[%clk 0:00:02]} 40... Ke5 {[%clk 0:00:10.5]} 41. Kf3 {[%clk 0:00:02.1]}
41... Kf5 {[%clk 0:00:11]} 42. Kg3 {[%clk 0:00:02.6]} 42... h5 {[%clk 0:00:11]}
43. a5 {[%clk 0:00:02.9]} 43... Bb5 {[%clk 0:00:09.1]} 44. Kh3 {[%clk
0:00:03.8]} 44... Kf4 {[%clk 0:00:09.3]} 45. Kh2 {[%clk 0:00:04]} 45... Kg4
{[%clk 0:00:09.8]} 46. Kg2 {[%clk 0:00:03.9]} 46... Kxh4 {[%clk 0:00:10.2]} 47.
Kh2 {[%clk 0:00:04.8]} 47... Kg4 {[%clk 0:00:10.8]} 48. Kg2 {[%clk 0:00:05.7]}
48... g5 {[%clk 0:00:11.2]} 49. Kh2 {[%clk 0:00:06.6]} 49... h4 {[%clk
0:00:11.9]} 50. Kg2 {[%clk 0:00:07.5]} 50... h3+ {[%clk 0:00:12]} 51. Kh2 {[%clk
0:00:06.6]} 51... Bc4 {[%clk 0:00:11.1]} 52. Kg1 {[%clk 0:00:07.5]} 52... Kg3
{[%clk 0:00:10.9]} 53. a6 {[%clk 0:00:04.5]} 53... Bxa6 {[%clk 0:00:10.4]} 54.
Kh1 {[%clk 0:00:03.8]} 54... h2 {[%clk 0:00:11.3]} 1/2-1/2